bitfinex/quotes_ETHUSD_20250222
["timestamp","ask_amount","ask_price","bid_price","bid_amount"]
[1740248890754,3.59734,2779.9,2779.2,0.2397]
[1740248890977,3.5975,2779.8,2779.2,4.22162]
[1740248891132,3.59764,2779.6,2779.3,0.13967545]
[1740248891520,7.19491,2779.8,2779.3,0.13967545]
[1740248891757,3.59744,2779.8,2779.3,0.13967545]
[1740248891918,3.59753,2779.7,2779.3,0.13967545]
[1740248892469,3.59766,2779.6,2779.3,0.13967545]
[1740248893030,3.59749,2779.8,2779.3,0.935634]
[1740248893343,3.59765,2779.6,2779.3,0.935634]
[1740248893519,3.59765,2779.6,2779.3,0.13967545]
[1740248894021,3.59751,2779.7,2779.3,0.13967545]
[1740248894338,7.19491,2779.8,2779.3,0.13967545]
[1740248894534,3.59743,2779.8,2779.3,0.13967545]
[1740248894711,3.59758,2779.7,2779.3,0.13967545]
[1740248894914,3.59789,2779.5,2779.3,0.13967545]
[1740248895127,3.59774,2779.6,2779.3,0.13967545]
[1740248895328,3.59783,2779.5,2779.3,0.13967545]
[1740248895974,3.59748,2779.8,2779.3,0.13967545]
[1740248896163,3.59748,2779.8,2779.3,4.173765]
[1740248896324,3.59714,2780.0,2779.5,3.83743]
[1740248896765,3.59686,2780.2,2779.6,3.73655612]
[1740248897072,7.19384,2780.2,2779.7,0.2397]
[1740248897219,3.59686,2780.2,2779.7,0.2397]
[1740248897414,3.59673,2780.3,2779.8,3.73527403]
[1740248897617,3.59669,2780.4,2779.9,3.59717]
[1740248897855,3.59669,2780.4,2779.9,0.2397]
[1740248898031,3.59669,2780.4,2780.0,0.1377581]
[1740248898445,3.59635,2780.6,2780.0,3.7348381]
[1740248898646,3.59635,2780.6,2780.2,0.2397]
[1740248898854,3.59635,2780.6,2780.3,0.13743426]
[1740248899161,3.59635,2780.6,2780.2,0.2397]
[1740248899361,3.59635,2780.6,2780.4,0.13713389]
[1740248899518,3.59635,2780.6,2780.2,0.2397]
[1740248899519,3.59635,2780.6,2780.3,0.13724182]
[1740248899736,3.59634,2780.6,2780.5,0.13702596]
[1740248899947,3.59647,2780.5,2780.4,0.37683389]
[1740248900142,3.59647,2780.5,2780.4,0.2397]
[1740248900423,3.59616,2780.8,2780.4,0.2397]
[1740248900625,3.59632,2780.7,2780.4,0.2397]
[1740248900825,3.59632,2780.7,2780.4,0.623348]
[1740248901024,3.59605,2780.9,2780.4,0.623348]
[1740248901426,3.59607,2780.9,2780.4,0.623348]
[1740248901762,3.59621,2780.7,2779.8,0.2397]
[1740248901924,4.18639684,2780.6,2779.8,0.2397]
[1740248902274,3.5968,2780.3,2779.8,0.2397]
[1740248902632,3.5968,2780.3,2779.9,0.13211953]
[1740248902841,3.59654,2780.5,2779.9,4.12621248]
[1740248903143,5.24,2780.9,2780.0,3.59705]
[1740248903347,5.24,2780.9,2779.9,4.12623248]
[1740248903348,3.5966,2780.4,2779.9,4.12623248]
[1740248903530,3.59657,2780.5,2780.1,0.13190361]
[1740248903732,3.59656,2780.5,2780.0,0.13201156]
[1740248903955,3.59621,2780.7,2780.2,0.13183749]
[1740248904165,3.59673,2780.3,2780.1,0.13202726]
[1740248904325,3.59673,2780.3,2779.8,0.2397]
[1740248904632,3.59701,2780.1,2779.8,0.2397]
[1740248906279,3.59716,2780.0,2779.8,0.2397]
[1740248907166,1.05222232,2781.4,2780.0,3.59705]
[1740248907385,3.59635,2780.6,2780.0,3.980725]
[1740248907561,3.59744,2779.8,2779.6,0.2397]
[1740248908288,3.59704,2780.1,2779.6,0.2397]
[1740248908489,3.59721,2780.0,2779.6,0.2397]
[1740248908691,7.1944,2780.0,2779.6,0.2397]
[1740248908989,3.59719,2780.0,2779.6,0.2397]
[1740248909374,7.19442,2780.0,2779.6,0.2397]
[1740248909577,3.59719,2780.0,2779.6,0.2397]
[1740248909899,7.19442,2780.0,2779.6,0.2397]
[1740248910094,3.59726,2779.9,2779.6,0.2397]
[1740248911565,3.59714,2780.0,2779.6,0.2397]
[1740248912001,3.59714,2780.0,2779.2,7.22697]
[1740248912002,0.8093,2779.9,2779.0,3.6289]
[1740248912172,0.8093,2779.9,2778.9,3.83823]
[1740248912173,3.59783,2779.5,2778.9,3.83823]
[1740248912705,7.19571,2779.5,2778.9,3.83823]
[1740248913083,3.59783,2779.5,2778.9,3.83823]
[1740248913295,3.59783,2779.5,2778.9,4.581911]
[1740248913494,3.59783,2779.5,2779.0,3.59839]
[1740248913709,3.59752,2779.7,2779.0,3.59839]
[1740248914009,3.59752,2779.7,2779.1,3.59819]
[1740248914169,3.59752,2779.7,2779.0,3.59839]
[1740248914508,3.59812,2779.3,2778.9,0.2397]
[1740248914709,3.59829,2779.1,2778.9,0.2397]
[1740248915077,3.59841,2779.0,2778.5,11.18873]
[1740248916413,3.59798,2779.4,2778.8,3.59859]
[1740248916613,7.196,2779.4,2778.8,3.59859]
[1740248917331,3.59804,2779.3,2778.9,0.12506401]
[1740248921342,3.59804,2779.3,2778.9,3.72360401]
[1740248921554,3.59792,2779.4,2778.9,3.72360401]
[1740248921718,3.59799,2779.4,2778.9,0.12506401]
[1740248921912,3.59789,2779.4,2778.9,3.72357401]
[1740248922115,3.59785,2779.5,2778.9,0.12506401]
[1740248922318,3.59798,2779.4,2778.9,0.12506401]
[1740248922623,3.59811,2779.3,2779.0,0.12326263]
[1740248922814,3.957931,2779.3,2779.0,0.12326263]
[1740248923014,3.957931,2779.3,2778.8,3.59866]
[1740248923213,3.59812,2779.3,2778.8,7.19732]
[1740248923448,3.59812,2779.3,2778.9,0.12337067]
[1740248923650,3.59812,2779.3,2778.9,3.72191067]
[1740248924447,3.59812,2779.3,2778.9,0.12337067]
[1740248924653,3.59812,2779.3,2778.8,3.59863]
[1740248924864,3.59812,2779.3,2778.9,0.12370928]
[1740248928230,3.59784,2779.5,2778.8,3.59866]
[1740248928430,3.59789,2779.4,2778.8,3.59866]
[1740248928651,3.59789,2779.4,2778.9,3.72224928]
[1740248929271,3.59805,2779.3,2778.9,0.12370928]
[1740248930556,3.59805,2779.3,2778.9,3.72223928]
[1740248930758,3.59759,2779.7,2779.1,3.59816]
[1740248930949,3.59774,2779.6,2779.1,3.59816]
[1740248931269,3.59774,2779.6,2779.2,0.12338518]
[1740248933531,3.5974,2779.8,2779.2,3.72152518]
[1740248933737,3.59712,2780.0,2779.4,0.2397]
[1740248933938,3.59732,2779.9,2779.4,3.83752]
[1740248934150,3.59712,2780.0,2779.5,0.12292567]
[1740248934350,3.59712,2780.0,2779.5,3.72068567]
[1740248934734,7.19434,2780.0,2779.5,3.72068567]
[1740248934963,3.59712,2780.0,2779.5,3.72068567]
[1740248935151,3.59727,2779.9,2779.5,3.72068567]
[1740248938852,3.59763,2779.6,2779.5,0.12292567]
[1740248939252,3.59809,2779.3,2778.9,3.6289]
[1740248939449,7.19621,2779.3,2778.8,3.83837]
[1740248939649,3.59816,2779.2,2778.8,0.2397]
[1740248940044,3.59809,2779.3,2779.0,0.70272665]
[1740248940585,3.59755,2779.7,2779.0,0.70272665]
[1740248940786,3.59786,2779.5,2779.0,4.30111665]
[1740248941684,3.5976,2779.7,2779.0,4.30111665]
[1740248941685,3.5976,2779.7,2779.1,3.59821]
[1740248941882,0.7974,2779.8,2779.0,1.51665332]
[1740248942075,3.59791,2779.4,2779.0,4.30113665]
[1740248942277,3.59791,2779.4,2779.0,0.70272665]
[1740248942449,3.59802,2779.3,2779.0,0.70272665]
[1740248945484,0.7974,2779.8,2779.0,0.70272665]
[1740248945685,3.59768,2779.6,2779.1,3.59821]
[1740248945852,4.08310794,2779.7,2779.2,3.59809]
[1740248946053,3.59765,2779.6,2779.2,3.59809]
[1740248946584,4.08310794,2779.7,2779.2,3.59809]
[1740248946766,4.08308794,2779.7,2779.2,3.59809]
[1740248946966,0.48548794,2779.7,2779.3,3.59802]
[1740248947170,4.39486,2779.8,2779.3,3.83772]
[1740248947354,4.316759,2779.9,2779.4,3.72087062]
[1740248947558,3.59733,2779.9,2779.4,3.72087062]
[1740248948383,3.5969,2780.2,2779.7,3.59745]
[1740248948689,3.5969,2780.2,2779.5,7.19539]
[1740248948884,3.59699,2780.1,2779.6,3.59761]
[1740248949067,3.59699,2780.1,2779.7,0.12240183]
[1740248949469,3.59712,2780.0,2779.7,0.12240183]
[1740248949891,3.59712,2780.0,2779.5,7.19533]
[1740248950078,3.59712,2780.0,2779.5,7.966953]
[1740248950487,3.59712,2780.0,2779.6,0.12250982]
[1740248951465,3.59751,2779.7,2779.6,0.12250982]
[1740248951701,4.36749,2779.8,2779.1,3.6289]
[1740248951874,3.59806,2779.3,2779.2,0.12286797]
[1740248952270,3.59806,2779.3,2779.0,0.2397]
[1740248952469,3.59806,2779.3,2779.1,0.12297599]
[1740248954522,3.59773,2779.6,2779.1,0.12297599]
[1740248954976,3.59783,2779.5,2779.1,0.12297599]
[1740248957154,3.59759,2779.7,2779.1,0.12297599]
[1740248957312,3.59769,2779.6,2779.1,0.12297599]
[1740248957509,3.59769,2779.6,2779.1,3.72121599]
[1740248958457,3.59763,2779.6,2779.1,3.72121599]
[1740248958648,3.59777,2779.5,2779.1,3.72121599]
[1740248959071,3.59777,2779.5,2779.1,0.12297599]
[1740248961083,3.59764,2779.6,2779.1,3.72123599]
[1740248962487,3.59781,2779.5,2779.1,0.12297599]
[1740248962767,7.19569,2779.5,2779.1,0.12297599]
[1740248962974,7.19566,2779.5,2779.1,0.12297599]
[1740248963159,3.59781,2779.5,2779.1,0.12297599]
[1740248963483,3.5976,2779.7,2779.1,0.12297599]
[1740248963683,3.5978,2779.5,2779.1,0.12297599]
[1740248965288,3.59795,2779.4,2779.1,0.12297599]
[1740248965472,7.19594,2779.4,2779.1,0.12297599]
[1740248965783,3.59795,2779.4,2779.1,0.12297599]
[1740248966877,3.59777,2779.5,2779.1,0.12297599]
[1740248968965,3.59756,2779.7,2779.1,3.72119599]
[1740248969192,3.59763,2779.6,2779.1,3.72118599]
[1740248970210,3.59763,2779.6,2779.1,7.31939599]
[1740248970383,3.59756,2779.7,2779.1,0.12297599]
[1740248970584,3.59756,2779.7,2779.2,3.59806]
[1740248970998,3.59744,2779.8,2779.3,3.72086002]
[1740248971403,4.40736,2780.1,2779.6,0.2397]
[1740248971589,3.59706,2780.1,2779.6,3.83726]
[1740248971777,7.19418,2780.1,2779.6,3.83726]
[1740248971973,7.19418,2780.1,2779.7,0.1222541]
[1740248972280,7.19415,2780.1,2779.7,0.1222541]
[1740248972503,3.59713,2780.0,2779.7,0.1222541]
[1740248974185,3.59617,2780.8,2780.2,3.71844502]
[1740248974382,3.5963,2780.7,2780.2,3.71844502]
[1740248974578,3.33805037,2780.9,2780.3,3.83636]
[1740248974798,3.59586,2781.0,2780.4,3.59654]
[1740248974992,3.59527,2781.5,2780.8,3.59608]
[1740248975284,3.5956,2781.2,2780.9,0.1206019]
[1740248975478,3.59582,2781.1,2780.5,0.2397]
[1740248975702,3.33805037,2781.4,2780.7,3.59619]
[1740248975703,6.93344037,2781.4,2780.7,3.59619]
[1740248975903,6.93344037,2781.4,2780.6,0.411323]
[1740248975904,6.93344037,2781.4,2780.8,3.71676979]
[1740248976107,3.59539,2781.4,2780.9,0.2397]
[1740248976423,3.59539,2781.4,2781.0,0.12049401]
[1740248976580,3.59511,2781.6,2781.0,0.12049401]
[1740248976920,3.59524,2781.5,2781.0,3.71630401]
[1740248977115,3.59534,2781.4,2781.0,0.87570041]
[1740248977679,3.59544,2781.3,2781.0,0.87570041]
[1740248977875,3.59544,2781.3,2781.0,0.12049401]
[1740248978319,3.59534,2781.4,2781.0,0.12049401]
[1740248978521,3.59506,2781.6,2781.0,0.12049401]
[1740248978696,3.59521,2781.5,2781.0,3.71630401]
[1740248979099,3.0,2782.0,2781.2,3.5955]
[1740248979100,6.93267037,2782.0,2781.2,3.5955]
[1740248979301,3.59482,2781.8,2781.3,0.5036904]
[1740248979620,3.59517,2781.6,2781.3,0.5036904]
[1740248979815,3.59517,2781.6,2781.3,0.1201704]
[1740248980178,3.59488,2781.8,2781.1,3.83538]
[1740248980388,3.59518,2781.5,2781.4,0.11941668]
[1740248980587,3.59592,2781.0,2780.7,3.8686]
[1740248980895,3.59592,2781.0,2780.8,0.12006392]
[1740248981090,3.59592,2781.0,2780.7,0.2397]
[1740248981318,3.59592,2781.0,2780.8,0.12006392]
[1740248981518,3.59592,2781.0,2780.7,0.2397]
[1740248981712,3.59592,2781.0,2780.8,0.12003317]
[1740248982033,3.59592,2781.0,2780.7,0.2397]
[1740248982233,3.59592,2781.0,2780.9,0.11992528]
[1740248982531,3.59592,2781.0,2780.9,0.11998677]
[1740248982704,3.59592,2781.0,2780.7,1.0273293]
[1740248982887,3.59592,2781.0,2780.8,0.12009466]
[1740248983086,3.59592,2781.0,2780.7,1.0273293]
[1740248983388,3.59565,2781.2,2780.8,0.12009466]
[1740248983708,3.59579,2781.1,2780.7,1.0273293]
[1740248983885,3.59579,2781.1,2780.8,0.62359189]
[1740248984085,3.59545,2781.3,2780.8,0.62359189]
[1740248984298,3.59568,2781.2,2780.8,0.62359189]
[1740248984900,3.59545,2781.3,2780.8,0.62359189]
[1740248985088,7.19098,2781.3,2780.8,0.62359189]
[1740248985288,3.59545,2781.3,2780.9,0.52470512]
[1740248985496,3.59557,2781.2,2781.0,0.11987888]
[1740248985706,3.59578,2781.1,2780.7,1.0273293]
[1740248985909,3.59578,2781.1,2780.8,0.12009466]
[1740248986190,3.59578,2781.1,2780.7,1.0273293]
[1740248986423,3.59578,2781.1,2780.9,0.11998677]
[1740248986599,3.59578,2781.1,2780.8,0.12009466]
[1740248986796,3.59578,2781.1,2781.0,0.11893749]
[1740248987002,3.59582,2781.0,2780.9,0.11904538]
[1740248987191,3.5962,2780.8,2780.5,3.6289]
[1740248987389,3.59631,2780.7,2780.4,7.5897]
[1740248987622,3.59621,2780.7,2780.4,8.37617]
[1740248987819,3.59592,2781.0,2780.4,8.37617]
[1740248988005,3.59609,2780.8,2780.4,8.37617]
[1740248990123,3.59631,2780.7,2780.4,8.13647]
[1740248990435,3.59609,2780.8,2780.4,8.13647]
[1740248990637,6.93397037,2781.0,2780.4,11.73305]
[1740248990793,3.59599,2780.9,2780.4,11.73305]
[1740248992323,3.59599,2780.9,2780.4,15.32959]
[1740248992525,3.59599,2780.9,2780.5,0.11955078]
[1740248993739,3.59592,2781.0,2780.5,0.11955078]
[1740248994125,3.59599,2780.9,2780.5,0.11955078]
[1740248994726,3.59595,2780.9,2780.5,0.11955078]
[1740248996278,3.59592,2781.0,2780.5,0.11955078]
[1740248996442,3.59596,2780.9,2780.5,0.11955078]
[1740248997638,7.19182,2781.0,2780.5,0.11955078]
[1740248997839,3.596,2780.9,2780.5,0.11955078]
[1740248999044,3.5959,2781.0,2780.5,4.16622086]
[1740248999216,7.19182,2781.0,2780.5,4.16622086]
[1740248999539,3.59597,2780.9,2780.5,0.56980086]
[1740248999718,3.59582,2781.1,2780.5,4.16616086]
[1740249000142,3.59582,2781.1,2780.6,3.59629]
[1740249000341,3.59582,2781.1,2780.7,0.2397]
[1740249000560,3.33805037,2781.3,2780.7,0.2397]
[1740249000763,6.93358037,2781.3,2780.8,3.59601]
[1740249001270,3.33805037,2781.3,2780.8,3.59601]
[1740249001461,3.59524,2781.5,2781.0,3.59576]
[1740249001628,3.59521,2781.5,2781.0,3.59576]
[1740249001829,3.59505,2781.6,2781.0,3.59576]
[1740249002238,3.59505,2781.6,2780.9,3.59595]
[1740249002438,3.59518,2781.5,2780.9,4.4166646]
[1740249002657,3.59519,2781.5,2780.9,0.8207746]
[1740249002934,3.59546,2781.3,2780.9,3.59594]
[1740249003368,3.59546,2781.3,2780.7,7.46472]
[1740249003668,3.59546,2781.3,2780.8,3.59608]
[1740249004040,3.33805037,2781.7,2780.7,3.8686]
[1740249004041,3.33805037,2781.4,2780.7,3.8686]
[1740249004272,3.59608,2780.8,2780.7,3.6289]
[1740249004472,3.5963,2780.7,2780.5,7.46655078]
[1740249004957,3.33805037,2780.8,2780.5,7.46655078]
[1740249005272,3.59604,2780.9,2780.5,7.46655078]
[1740249005466,6.93383037,2781.1,2780.5,8.59682986]
[1740249005640,3.59585,2781.0,2780.5,12.19328986]
[1740249005847,3.59602,2780.9,2780.5,8.59682986]
[1740249006472,6.93382037,2781.1,2780.5,8.59682986]
[1740249006655,6.93382037,2781.1,2780.5,12.19323986]
[1740249006863,6.93382037,2781.1,2780.6,1.24329399]
[1740249007370,3.59597,2780.9,2780.6,1.24329399]
[1740249008271,6.93382037,2781.1,2780.6,1.24329399]
[1740249008463,6.93382037,2781.1,2780.5,3.71596078]
[1740249008959,3.59551,2781.3,2780.6,3.59633]
[1740249009162,3.59559,2781.2,2780.6,3.59628]
[1740249009339,3.59567,2781.2,2780.5,3.71594078]
[1740249009539,6.93344037,2781.4,2780.8,0.2397]
[1740249009742,10.52887037,2781.4,2780.8,3.83577]
[1740249010177,6.93344037,2781.4,2780.8,3.83577]
[1740249010643,3.5955,2781.3,2780.8,0.2397]
[1740249010839,3.59539,2781.4,2780.8,0.2397]
[1740249011079,3.59513,2781.6,2780.9,3.59587]
[1740249011254,7.19029,2781.6,2781.0,0.383557]
[1740249011449,6.93297037,2781.7,2781.2,0.2397]
[1740249011648,3.59505,2781.6,2781.2,0.2397]
[1740249011882,3.33805037,2781.7,2781.2,0.2397]
[1740249012065,3.59513,2781.6,2781.2,0.2397]
[1740249012376,3.59513,2781.6,2781.2,0.6615997]
[1740249012581,3.59519,2781.5,2781.2,0.6615997]
[1740249013077,3.59505,2781.6,2781.2,0.6615997]
[1740249013440,8.83478,2781.9,2781.3,3.59534]
[1740249013639,4.09685037,2782.0,2781.3,3.59534]
[1740249013640,3.33805037,2782.0,2781.5,3.8348]
[1740249013848,3.59443,2782.1,2781.5,3.8348]
[1740249014268,3.59443,2782.1,2781.5,3.83477]
[1740249014673,3.59443,2782.1,2781.5,0.2397]
[1740249014855,3.59461,2782.0,2781.5,0.2397]
[1740249015156,3.59461,2782.0,2781.6,0.4260694]
[1740249016139,3.59461,2782.0,2781.2,3.59556]
[1740249016140,3.59531,2781.4,2781.1,0.2397]
[1740249016347,3.59616,2780.8,2780.6,0.2397]
[1740249016840,7.18499657,2780.8,2780.6,0.2397]
[1740249017042,3.58881657,2780.8,2780.7,0.39881508]
[1740249017870,3.58881657,2780.8,2780.7,0.51793487]
[1740249018848,3.59596,2780.9,2780.7,0.51793487]
[1740249020482,3.59577,2781.1,2780.7,0.51793487]
[1740249020680,3.59587,2781.0,2780.7,0.51793487]
[1740249021644,3.59587,2781.0,2780.7,0.11911979]
[1740249023756,3.59559,2781.2,2780.7,0.11911979]
[1740249023960,3.59569,2781.1,2780.7,0.11911979]
[1740249026091,3.59544,2781.3,2780.7,3.71526979]
[1740249026272,3.59544,2781.3,2780.8,3.59607]
[1740249026469,3.59544,2781.3,2780.8,0.46813409]
[1740249026696,7.19095,2781.3,2780.9,0.11897164]
[1740249026997,3.59544,2781.3,2780.9,0.11897164]
[1740249028015,3.59506,2781.6,2781.2,0.2397]
[1740249028365,3.59531,2781.4,2781.3,0.11854015]
[1740249028569,3.59531,2781.4,2781.2,0.2397]
[1740249029000,3.59531,2781.4,2781.3,0.11854015]
[1740249029806,3.59531,2781.4,2780.9,0.27]
[1740249030011,3.59531,2781.4,2781.3,0.11854015]
[1740249030189,3.59531,2781.4,2780.9,0.27]
[1740249030513,3.59545,2781.3,2781.0,0.43341741]
[1740249030715,3.59545,2781.3,2781.0,0.55228117]
[1740249031060,3.5953,2781.5,2781.0,4.14806117]
[1740249031265,3.5953,2781.5,2781.1,0.2397]
[1740249031676,3.33805037,2781.6,2781.2,0.11880787]
[1740249031965,3.59493,2781.7,2781.2,0.11880787]
[1740249031966,3.59493,2781.7,2781.2,0.5575784]
[1740249032162,3.59513,2781.6,2781.2,0.5575784]
[1740249032396,3.59517,2781.6,2781.2,0.5575784]
[1740249032666,3.59511,2781.6,2781.2,0.5575784]
[1740249033106,7.18976,2781.8,2781.2,4.1530684]
[1740249033296,3.59485,2781.8,2781.3,0.43927684]
[1740249033696,3.59492,2781.7,2781.4,0.11859215]
[1740249033995,3.59486,2781.8,2781.4,0.11859215]
[1740249034201,3.33805037,2781.9,2781.4,0.11859215]
[1740249034386,3.59518,2781.5,2781.4,0.11859215]
[1740249034774,3.59535,2781.4,2781.1,0.2397]
[1740249035101,3.59535,2781.4,2781.2,0.38686]
[1740249035603,3.59535,2781.4,2781.3,0.11842944]
[1740249035902,3.59535,2781.4,2781.2,0.38686]
[1740249036103,3.59535,2781.4,2781.3,0.11842944]
[1740249036398,3.59535,2781.4,2781.2,0.38686]
[1740249036566,3.59535,2781.4,2781.3,0.11842944]
[1740249037002,3.59545,2781.3,2781.1,0.2397]
[1740249037302,3.59545,2781.3,2781.2,0.38686]
[1740249038167,3.59531,2781.4,2781.2,0.38686]
[1740249038573,6.93312037,2781.6,2781.2,0.38686]
[1740249038574,3.59522,2781.5,2781.2,0.38686]
[1740249039112,3.59532,2781.4,2781.2,0.38686]
[1740249039595,3.59532,2781.4,2781.1,0.2397]
[1740249043981,6.93318037,2781.6,2781.1,0.2397]
[1740249044200,3.59521,2781.5,2781.1,0.2397]
[1740249044407,3.59513,2781.6,2781.1,0.2397]
[1740249044610,3.59489,2781.8,2781.2,3.59548]
[1740249044776,3.59492,2781.7,2781.2,3.978998]
[1740249044977,7.18995,2781.7,2781.2,3.978998]
[1740249045618,3.59505,2781.6,2781.2,3.978998]
[1740249045912,4.10825037,2782.0,2781.3,3.59537]
[1740249046096,3.59476,2781.9,2781.3,3.59537]
[1740249046274,3.59481,2781.8,2781.4,3.9931388]
[1740249046479,3.59481,2781.8,2781.4,0.3978888]
[1740249046880,3.59476,2781.9,2781.4,0.3978888]
[1740249047114,3.59476,2781.9,2781.4,3.9931288]
[1740249047408,3.59467,2781.9,2781.5,0.2397]
[1740249047609,3.59467,2781.9,2781.5,1.02252588]
[1740249047909,9.38965037,2782.2,2781.6,3.59505]
[1740249048079,7.74402037,2782.2,2781.6,3.59505]
[1740249048275,3.59443,2782.1,2781.6,3.59505]
[1740249049319,3.59425,2782.3,2781.7,3.59486]
[1740249049613,3.59428,2782.2,2781.8,0.359486]
[1740249049999,3.59425,2782.3,2781.8,0.359486]
[1740249050326,3.59425,2782.3,2781.9,0.11741359]
[1740249050524,3.59425,2782.3,2782.0,0.2397]
[1740249050729,3.59425,2782.3,2782.0,0.35700578]
[1740249050933,3.59425,2782.3,2782.0,0.78813296]
[1740249051435,3.59394,2782.5,2782.0,0.78813296]
[1740249051926,4.11605037,2782.8,2782.0,0.78813296]
[1740249052125,3.59395,2782.5,2782.0,0.78813296]
[1740249052440,7.18796,2782.5,2782.1,0.4382723]
[1740249052579,3.59395,2782.5,2782.1,0.4382723]
[1740249052920,7.18792,2782.5,2782.2,0.11702873]
[1740249053396,3.59403,2782.4,2782.2,0.11702873]
[1740249055297,3.59378,2782.6,2782.2,0.11702873]
[1740249055831,3.594,2782.5,2782.2,0.11702873]
[1740249055996,3.59403,2782.4,2782.2,0.59908555]
[1740249056198,3.59378,2782.6,2782.2,0.59908555]
[1740249056410,3.59396,2782.5,2782.2,0.59908555]
[1740249056590,3.59399,2782.5,2782.2,0.59908555]
[1740249056790,3.59378,2782.6,2782.2,0.59908555]
[1740249056991,3.59395,2782.5,2782.2,0.59908555]
[1740249057799,3.59414,2782.3,2782.2,0.11702873]
[1740249058002,4.37214,2782.3,2782.2,0.11702873]
[1740249058212,3.59466,2781.9,2781.8,3.6289]
[1740249058411,3.59493,2781.7,2781.5,0.268]
[1740249058916,3.59493,2781.7,2781.4,3.8686]
[1740249058917,3.33805037,2781.8,2781.2,0.5077]
[1740249059111,3.59531,2781.4,2781.3,0.41366]
[1740249059438,3.59551,2781.3,2781.1,3.6289]
[1740249059588,4.3734,2781.4,2781.1,3.6289]
[1740249059993,7.9688,2781.4,2781.1,3.6289]
[1740249060303,0.778,2781.4,2781.0,0.2397]
[1740249060624,3.33805037,2781.2,2780.7,3.6289]
[1740249060824,3.59507,2781.6,2780.6,7.344]
[1740249060825,7.71208037,2780.9,2780.6,7.344]
[1740249061028,3.59621,2780.7,2780.6,7.344]
[1740249061222,3.59621,2780.7,2780.6,8.0784]
[1740249061388,7.71208037,2780.9,2780.6,8.0784]
[1740249061595,4.11605037,2780.9,2780.6,8.0784]
[1740249062440,7.73686037,2781.2,2780.6,11.67461]
[1740249062641,7.73686037,2781.2,2780.6,8.0784]
[1740249062849,3.59589,2781.0,2780.6,8.0784]
[1740249063145,3.59569,2781.1,2780.7,1.167476]
[1740249065417,3.59569,2781.1,2780.8,0.11505581]
[1740249065797,3.59569,2781.1,2780.7,1.167476]
[1740249065997,7.73686037,2781.2,2780.9,0.11494791]
[1740249066192,7.73686037,2781.2,2780.7,4.763686]
[1740249066193,7.73686037,2781.2,2780.8,0.11505581]
[1740249066442,3.59569,2781.1,2781.0,0.11484003]
[1740249066940,3.59569,2781.1,2780.6,11.6747]
[1740249067249,3.59569,2781.1,2781.0,0.11484003]
[1740249067430,3.59569,2781.1,2780.6,11.6747]
[1740249067750,3.59569,2781.1,2780.7,1.16747]
[1740249067900,3.59569,2781.1,2780.7,1.28263371]
[1740249068737,4.35228,2780.8,2780.7,0.11516371]
[1740249068897,0.7562,2779.9,2779.3,0.2397]
[1740249069245,0.7562,2779.9,2779.2,10.94311]
[1740249069246,6.93549037,2779.8,2779.2,10.94311]
[1740249069410,6.93549037,2779.8,2779.4,0.10477311]
[1740249069617,6.93549037,2779.8,2779.3,0.10488112]
[1740249069950,3.59776,2779.5,2779.4,0.10477311]
[1740249070241,6.93568037,2779.6,2779.2,7.345]
[1740249070242,4.35422,2779.3,2779.2,7.345]
[1740249070401,7.69227037,2779.3,2779.2,7.345]
[1740249071114,3.59861,2778.9,2778.2,0.37604335]
[1740249071359,6.93693037,2778.7,2778.2,0.37604335]
[1740249071921,6.93730037,2778.4,2778.0,3.6289]
[1740249072123,3.59932,2778.3,2777.8,0.268]
[1740249072310,6.93730037,2778.4,2777.7,3.60008]
[1740249072508,6.93730037,2778.4,2777.6,7.5857]
[1740249072715,3.33805037,2778.4,2777.6,8.37107]
[1740249072921,3.33805037,2778.7,2778.0,3.5997]
[1740249073135,3.33805037,2778.7,2777.9,3.59978]
[1740249073830,3.33805037,2778.7,2778.1,3.59957]
[1740249074511,3.33805037,2778.7,2777.9,3.59978]
[1740249074835,3.33805037,2778.7,2778.0,3.5997]
[1740249075915,3.33805037,2778.7,2778.0,3.59962]
[1740249076107,3.33805037,2778.7,2778.1,3.59945]
[1740249076540,3.33805037,2778.7,2778.2,0.10747248]
[1740249076745,3.33805037,2778.7,2778.1,3.59949]
[1740249076942,6.0024,2778.8,2778.4,3.59915]
[1740249077151,3.33805037,2779.0,2778.4,3.59915]
[1740249077330,3.33805037,2779.0,2778.2,0.34717248]
[1740249077331,0.7624,2779.1,2778.7,3.59873]
[1740249077532,3.33805037,2779.3,2778.7,3.59873]
[1740249077751,3.33805037,2779.3,2778.8,0.10679337]
[1740249077926,3.33805037,2779.3,2778.7,3.59873]
[1740249078126,3.33805037,2779.3,2778.9,0.10668532]
[1740249078451,3.33805037,2779.3,2778.9,3.59853]
[1740249078645,3.33805037,2779.3,2779.0,0.10657728]
[1740249078946,0.7624,2779.4,2779.0,0.10657728]
[1740249079113,3.33805037,2779.6,2778.8,0.2397]
[1740249079314,3.33805037,2779.6,2779.1,0.10646925]
[1740249079640,6.93569037,2779.6,2778.9,3.982316]
[1740249079838,6.93569037,2779.6,2779.2,0.10636123]
[1740249080037,3.33805037,2779.6,2779.0,3.5983]
[1740249080237,3.33805037,2779.6,2779.3,0.10625321]
[1740249080547,0.7624,2779.7,2779.3,3.59801]
[1740249080722,3.33805037,2779.9,2779.4,3.70364133]
[1740249081051,6.93537037,2779.9,2779.4,0.10577133]
[1740249081449,6.93537037,2779.9,2779.2,3.59813]
[1740249081646,6.93537037,2779.9,2779.5,0.10666155]
[1740249082015,6.93537037,2779.9,2779.2,3.59813]
[1740249082245,6.93537037,2779.9,2779.6,0.10655355]
[1740249082550,6.93537037,2779.9,2779.7,0.10644557]
[1740249082710,6.93537037,2779.9,2779.3,3.59802]
[1740249082911,6.93537037,2779.9,2779.4,0.10676955]
[1740249086250,3.59776,2779.5,2779.4,0.10676955]
[1740249086562,1.50438104,2779.5,2779.0,3.6289]
[1740249086719,3.59828,2779.1,2778.8,7.35]
[1740249087143,3.59843,2779.0,2778.8,7.35]